[Event "Live Chess"]
[Site "Chess.com"]
[Date "2023.05.21"]
[Round "-"]
[White "Crowded_House"]
[Black "AlanPaling"]
[Result "1-0"]
[WhiteElo "1605"]
[BlackElo "1372"]
[TimeControl "300"]
[EndTime "7:22:11 PDT"]
[Termination "Crowded_House won on time"]

1. d4 {[%clk 0:04:58.9]} 1... e5 {[%clk 0:04:58.6]} 2. dxe5 {[%clk 0:04:56.2]}
2... Nc6 {[%clk 0:04:57]} 3. Nf3 {[%clk 0:04:55.7]} 3... Qe7 {[%clk 0:04:56.2]}
4. Nbd2 {[%clk 0:04:52.8]} 4... Nxe5 {[%clk 0:04:54.3]} 5. Nxe5 {[%clk
0:04:52.6]} 5... Qxe5 {[%clk 0:04:52.9]} 6. Nf3 {[%clk 0:04:52.4]} 6... Qd6
{[%clk 0:04:52.1]} 7. Qxd6 {[%clk 0:04:50.1]} 7... Bxd6 {[%clk 0:04:50.8]} 8.
Bg5 {[%clk 0:04:45.3]} 8... h6 {[%clk 0:04:47.3]} 9. Bh4 {[%clk 0:04:43.5]} 9...
g5 {[%clk 0:04:45.1]} 10. Bg3 {[%clk 0:04:42.6]} 10... Bxg3 {[%clk 0:04:34.3]}
11. hxg3 {[%clk 0:04:41.9]} 11... g4 {[%clk 0:04:25.7]} 12. Ne5 {[%clk
0:04:35.5]} 12... d6 {[%clk 0:04:18.9]} 13. Nd3 {[%clk 0:04:26.6]} 13... Bf5
{[%clk 0:04:17]} 14. e3 {[%clk 0:04:21.8]} 14... Nf6 {[%clk 0:04:01]} 15. Be2
{[%clk 0:04:11.9]} 15... O-O-O {[%clk 0:03:40.4]} 16. c3 {[%clk 0:04:01.9]}
16... h5 {[%clk 0:03:37.8]} 17. Nf4 {[%clk 0:03:56.6]} 17... Bg6 {[%clk
0:03:31]} 18. Nxg6 {[%clk 0:03:51.9]} 18... fxg6 {[%clk 0:03:29.4]} 19. Bd3
{[%clk 0:03:47.8]} 19... Rhg8 {[%clk 0:03:27.6]} 20. O-O-O {[%clk 0:03:43.3]}
20... Kb8 {[%clk 0:03:21.1]} 21. Bc2 {[%clk 0:03:33.4]} 21... Rg7 {[%clk
0:03:13.6]} 22. Rd4 {[%clk 0:03:26.6]} 22... Re8 {[%clk 0:03:08.3]} 23. Rhd1
{[%clk 0:03:24.9]} 23... a6 {[%clk 0:02:56.8]} 24. Kb1 {[%clk 0:03:17.8]} 24...
Nd7 {[%clk 0:02:54.3]} 25. Re4 {[%clk 0:03:11.3]} 25... Ne5 {[%clk 0:02:45.9]}
26. Bb3 {[%clk 0:02:55.7]} 26... Rf8 {[%clk 0:02:19.7]} 27. Rd2 {[%clk
0:02:52.8]} 27... g5 {[%clk 0:02:02.7]} 28. Bd5 {[%clk 0:02:33.9]} 28... Rg6
{[%clk 0:02:00.4]} 29. Rb4 {[%clk 0:02:26.6]} 29... b6 {[%clk 0:01:59.1]} 30.
Rbd4 {[%clk 0:02:13.4]} 30... Rgf6 {[%clk 0:01:56.1]} 31. Kc2 {[%clk 0:02:06.8]}
31... Rxf2 {[%clk 0:01:53.9]} 32. Be4 {[%clk 0:01:56.4]} 32... Rxd2+ {[%clk
0:01:43.2]} 33. Rxd2 {[%clk 0:01:54.1]} 33... h4 {[%clk 0:01:31.9]} 34. gxh4
{[%clk 0:01:49.4]} 34... gxh4 {[%clk 0:01:30.6]} 35. Kd1 {[%clk 0:01:44.6]}
35... Rf1+ {[%clk 0:01:15.3]} 36. Ke2 {[%clk 0:01:41.3]} 36... Ra1 {[%clk
0:01:12]} 37. a3 {[%clk 0:01:39.5]} 37... h3 {[%clk 0:00:47.8]} 38. gxh3 {[%clk
0:01:37.7]} 38... gxh3 {[%clk 0:00:41.5]} 39. Rd1 {[%clk 0:01:36.5]} 39... Rxd1
{[%clk 0:00:38.7]} 40. Kxd1 {[%clk 0:01:35.8]} 40... h2 {[%clk 0:00:37.3]} 41.
Ke1 {[%clk 0:01:33.3]} 41... Nc4 {[%clk 0:00:34.2]} 42. b3 {[%clk 0:01:27.5]}
42... Nxe3 {[%clk 0:00:32.5]} 43. Ke2 {[%clk 0:01:25]} 43... Ng4 {[%clk
0:00:29]} 44. Bh1 {[%clk 0:01:21.7]} 44... Ne5 {[%clk 0:00:25.8]} 45. Kf2 {[%clk
0:01:17.5]} 45... c6 {[%clk 0:00:24.5]} 46. Kg2 {[%clk 0:01:15.9]} 46... d5
{[%clk 0:00:23.5]} 47. Kxh2 {[%clk 0:01:15]} 47... Kc7 {[%clk 0:00:20.8]} 48.
Kg2 {[%clk 0:01:13.3]} 48... Kd6 {[%clk 0:00:20]} 49. Kf2 {[%clk 0:01:10.9]}
49... Nd3+ {[%clk 0:00:17.3]} 50. Ke2 {[%clk 0:01:09.4]} 50... Nc5 {[%clk
0:00:14.1]} 51. b4 {[%clk 0:01:06.9]} 51... Na4 {[%clk 0:00:10.2]} 52. Kd3
{[%clk 0:01:04.3]} 52... c5 {[%clk 0:00:09]} 53. bxc5+ {[%clk 0:01:02.9]} 53...
bxc5 {[%clk 0:00:07.8]} 54. Kc2 {[%clk 0:01:01.7]} 54... c4 {[%clk 0:00:03.6]}
55. Bg2 {[%clk 0:00:59.7]} 55... Kc5 {[%clk 0:00:02.3]} 56. Bf3 {[%clk
0:00:56.8]} 1-0

[Event "Live Chess"]
[Site "Chess.com"]
[Date "2023.05.21"]
[Round "-"]
[White "ClassyChameleon"]
[Black "YrrriKharkiv"]
[Result "0-1"]
[WhiteElo "1083"]
[BlackElo "2059"]
[TimeControl "300"]
[EndTime "7:22:17 PDT"]
[Termination "YrrriKharkiv won by resignation"]

1. e4 {[%clk 0:04:59.3]} 1... e6 {[%clk 0:04:57.5]} 2. Nf3 {[%clk 0:04:58.8]}
2... d5 {[%clk 0:04:57]} 3. e5 {[%clk 0:04:56.6]} 3... c5 {[%clk 0:04:55.6]} 4.
d4 {[%clk 0:04:55.6]} 4... cxd4 {[%clk 0:04:52.6]} 5. Nxd4 {[%clk 0:04:54.3]}
5... Nc6 {[%clk 0:04:52.4]} 6. Nxc6 {[%clk 0:04:53.3]} 6... bxc6 {[%clk
0:04:50.7]} 7. Be3 {[%clk 0:04:49]} 7... Qc7 {[%clk 0:04:48.2]} 8. Bd4 {[%clk
0:04:44.9]} 8... c5 {[%clk 0:04:40.5]} 9. Be3 {[%clk 0:04:31.3]} 9... Qxe5
{[%clk 0:04:36.9]} 10. Bb5+ {[%clk 0:04:30.8]} 10... Bd7 {[%clk 0:04:35.5]} 11.
Bxd7+ {[%clk 0:04:29]} 11... Kxd7 {[%clk 0:04:35.1]} 12. O-O {[%clk 0:04:27.6]}
12... Nf6 {[%clk 0:04:24.5]} 13. c3 {[%clk 0:04:26.7]} 13... Qc7 {[%clk
0:04:21.4]} 14. Nd2 {[%clk 0:04:23.9]} 14... Bd6 {[%clk 0:04:18.6]} 15. Nf3
{[%clk 0:04:22.6]} 15... Rab8 {[%clk 0:04:15.6]} 16. Rb1 {[%clk 0:04:17.3]}
16... Ke7 {[%clk 0:04:14.1]} 17. b4 {[%clk 0:04:15.9]} 17... cxb4 {[%clk
0:04:10.1]} 18. cxb4 {[%clk 0:04:15.2]} 18... Rxb4 {[%clk 0:04:09.2]} 19. Rxb4
{[%clk 0:04:13.9]} 19... Bxb4 {[%clk 0:04:07.7]} 20. Nd4 {[%clk 0:04:10.4]}
20... Rb8 {[%clk 0:03:58.4]} 21. a4 {[%clk 0:03:59.5]} 21... Kf8 {[%clk
0:03:46.2]} 22. Nb5 {[%clk 0:03:56.9]} 22... Qa5 {[%clk 0:03:45.6]} 23. Bxa7
{[%clk 0:03:51.4]} 23... Rxb5 {[%clk 0:03:41.6]} 24. axb5 {[%clk 0:03:47.4]}
24... Qxa7 {[%clk 0:03:40.5]} 25. Qb1 {[%clk 0:03:39.7]} 25... Bd6 {[%clk
0:03:38.5]} 26. b6 {[%clk 0:03:38.3]} 26... Qb7 {[%clk 0:03:36]} 27. Qb5 {[%clk
0:03:12.8]} 27... Ke7 {[%clk 0:03:29.4]} 28. Rc1 {[%clk 0:03:08.4]} 28... Nd7
{[%clk 0:03:24.7]} 29. Rb1 {[%clk 0:02:40.8]} 29... Bc5 {[%clk 0:03:11.2]} 30.
h4 {[%clk 0:02:20.8]} 30... Qxb6 {[%clk 0:03:06.4]} 31. Qxb6 {[%clk 0:02:18.4]}
31... Bxb6 {[%clk 0:03:05.1]} 32. g4 {[%clk 0:02:15.8]} 32... Bd4 {[%clk
0:03:02]} 33. Kg2 {[%clk 0:02:14]} 33... h6 {[%clk 0:02:57.7]} 34. f3 {[%clk
0:02:13.1]} 34... g5 {[%clk 0:02:56.2]} 35. h5 {[%clk 0:02:10.1]} 35... Ne5
{[%clk 0:02:43.9]} 36. Kf1 {[%clk 0:02:07.2]} 36... Be3 {[%clk 0:02:39.5]} 37.
Ke2 {[%clk 0:02:05.9]} 37... Bf4 {[%clk 0:02:38.8]} 38. Rb7+ {[%clk 0:01:59.4]}
38... Kf6 {[%clk 0:02:37.6]} 39. Rb8 {[%clk 0:01:57.7]} 39... d4 {[%clk
0:02:34.5]} 40. Rh8 {[%clk 0:01:52.5]} 40... d3+ {[%clk 0:02:33.6]} 41. Kd1
{[%clk 0:01:51.1]} 41... Kg7 {[%clk 0:02:31.3]} 42. Rc8 {[%clk 0:01:45]} 42...
Nxf3 {[%clk 0:02:29.8]} 43. Rc3 {[%clk 0:01:42]} 43... Ne5 {[%clk 0:02:28.9]}
44. Rc7 {[%clk 0:01:38.9]} 44... Nxg4 {[%clk 0:02:27.2]} 45. Rc3 {[%clk
0:01:38]} 45... Ne5 {[%clk 0:02:25.5]} 46. Ra3 {[%clk 0:01:37.3]} 46... g4
{[%clk 0:02:22.5]} 47. Ra2 {[%clk 0:01:32.3]} 47... Kf6 {[%clk 0:02:18.4]} 48.
Rf2 {[%clk 0:01:25.2]} 48... Kg5 {[%clk 0:02:16.9]} 49. Rf1 {[%clk 0:01:17]}
49... g3 {[%clk 0:02:11.8]} 50. Rg1 {[%clk 0:01:14]} 50... Kxh5 {[%clk
0:02:10.7]} 51. Rh1+ {[%clk 0:01:11.9]} 51... Kg4 {[%clk 0:02:08.7]} 52. Rg1
{[%clk 0:01:09.8]} 52... h5 {[%clk 0:02:04.5]} 53. Ke1 {[%clk 0:01:01.5]} 53...
Nf3+ {[%clk 0:02:03.3]} 54. Kd1 {[%clk 0:01:01.2]} 54... Nxg1 {[%clk 0:02:02.4]}
55. Ke1 {[%clk 0:00:59.8]} 55... d2+ {[%clk 0:02:01.6]} 56. Kd1 {[%clk
0:00:59.4]} 56... Kf3 {[%clk 0:01:57.8]} 57. Kc2 {[%clk 0:00:56.3]} 57... Ke2
{[%clk 0:01:57.4]} 58. Kc3 {[%clk 0:00:54.1]} 58... d1=Q {[%clk 0:01:56.7]} 0-1

[Event "Live Chess"]
[Site "Chess.com"]
[Date "2023.05.21"]
[Round "-"]
[White "Bill0007"]
[Black "Inglaterra"]
[Result "0-1"]
[WhiteElo "1477"]
[BlackElo "2051"]
[TimeControl "300"]
[EndTime "7:22:24 PDT"]
[Termination "Inglaterra won by resignation"]

1. d4 {[%clk 0:04:57.9]} 1... Nf6 {[%clk 0:04:58.4]} 2. Nc3 {[%clk 0:04:55.2]}
2... d5 {[%clk 0:04:56.4]} 3. Bf4 {[%clk 0:04:47.5]} 3... c6 {[%clk 0:04:55]} 4.
e3 {[%clk 0:04:43.4]} 4... Bf5 {[%clk 0:04:53.6]} 5. f3 {[%clk 0:04:40.8]} 5...
e6 {[%clk 0:04:50.4]} 6. g4 {[%clk 0:04:39.1]} 6... Bg6 {[%clk 0:04:50]} 7. h4
{[%clk 0:04:37.9]} 7... h5 {[%clk 0:04:48.8]} 8. g5 {[%clk 0:04:36.7]} 8... Nfd7
{[%clk 0:04:47.3]} 9. Nh3 {[%clk 0:04:30.6]} 9... Bf5 {[%clk 0:04:42]} 10. Qd2
{[%clk 0:04:15.4]} 10... c5 {[%clk 0:04:35.2]} 11. Bd3 {[%clk 0:04:10.2]} 11...
Bxd3 {[%clk 0:04:22]} 12. cxd3 {[%clk 0:04:04.5]} 12... a6 {[%clk 0:04:19]} 13.
Bg3 {[%clk 0:03:40.8]} 13... cxd4 {[%clk 0:04:10.3]} 14. exd4 {[%clk 0:03:38.1]}
14... Nc6 {[%clk 0:04:09.7]} 15. Qe3 {[%clk 0:03:31.5]} 15... g6 {[%clk
0:03:30.6]} 16. O-O {[%clk 0:03:24.4]} 16... Bg7 {[%clk 0:03:26.1]} 17. Ne2
{[%clk 0:03:09.5]} 17... O-O {[%clk 0:03:19.6]} 18. Nhf4 {[%clk 0:03:02.8]}
18... Qb6 {[%clk 0:03:16.2]} 19. Bf2 {[%clk 0:02:49.5]} 19... Kh7 {[%clk
0:02:58.9]} 20. Rab1 {[%clk 0:02:45.1]} 20... Rae8 {[%clk 0:02:52.4]} 21. Rfe1
{[%clk 0:02:29.6]} 21... f6 {[%clk 0:02:49.3]} 22. gxf6 {[%clk 0:02:22.9]} 22...
Bxf6 {[%clk 0:02:40.6]} 23. a3 {[%clk 0:02:02.2]} 23... Nxd4 {[%clk 0:02:16.4]}
24. Nxd4 {[%clk 0:01:55.9]} 24... Bxd4 {[%clk 0:02:14]} 25. Qxd4 {[%clk
0:01:53.2]} 25... Qxd4 {[%clk 0:02:13.6]} 26. Bxd4 {[%clk 0:01:51]} 26... Rxf4
{[%clk 0:02:13.2]} 27. Bc3 {[%clk 0:01:21.9]} 27... Rxf3 {[%clk 0:02:06.9]} 28.
Kg2 {[%clk 0:01:15.9]} 28... Rf4 {[%clk 0:01:59.5]} 29. Kg3 {[%clk 0:01:08.3]}
29... Rg4+ {[%clk 0:01:48.5]} 30. Kh3 {[%clk 0:01:05.8]} 30... Nc5 {[%clk
0:01:44.3]} 31. Re3 {[%clk 0:01:00.9]} 31... d4 {[%clk 0:01:37.9]} 0-1

[Event "Live Chess"]
[Site "Chess.com"]
[Date "2023.05.21"]
[Round "-"]
[White "zdanevych"]
[Black "Duke_of_Bebington"]
[Result "0-1"]
[WhiteElo "1491"]
[BlackElo "1559"]
[TimeControl "300"]
[EndTime "7:22:26 PDT"]
[Termination "Duke_of_Bebington won by resignation"]

1. d4 {[%clk 0:04:59.5]} 1... d5 {[%clk 0:04:55.6]} 2. c4 {[%clk 0:04:57.8]}
2... c6 {[%clk 0:04:54.3]} 3. Nc3 {[%clk 0:04:56.5]} 3... e5 {[%clk 0:04:53.4]}
4. dxe5 {[%clk 0:04:55]} 4... d4 {[%clk 0:04:51.5]} 5. Ne4 {[%clk 0:04:51.1]}
5... Qa5+ {[%clk 0:04:48.1]} 6. Bd2 {[%clk 0:04:48.6]} 6... Qxe5 {[%clk
0:04:34.6]} 7. Nf3 {[%clk 0:04:46.8]} 7... Qxe4 {[%clk 0:04:33.1]} 8. e3 {[%clk
0:04:42.4]} 8... c5 {[%clk 0:04:22.7]} 9. Be2 {[%clk 0:04:31.1]} 9... Bd6 {[%clk
0:04:19.6]} 10. exd4 {[%clk 0:04:28.2]} 10... cxd4 {[%clk 0:04:10.4]} 11. O-O
{[%clk 0:04:19.1]} 11... Nf6 {[%clk 0:04:00.8]} 12. Qa4+ {[%clk 0:04:08.9]}
12... Bd7 {[%clk 0:03:57.8]} 13. Qd1 {[%clk 0:04:06]} 13... O-O {[%clk 0:03:56]}
14. Re1 {[%clk 0:04:03.7]} 14... Nc6 {[%clk 0:03:39.7]} 15. Ng5 {[%clk 0:03:59]}
15... Qg6 {[%clk 0:03:25.9]} 16. h4 {[%clk 0:03:45.3]} 16... h6 {[%clk
0:03:16.7]} 17. Nf3 {[%clk 0:03:42]} 17... Rfe8 {[%clk 0:03:04.2]} 18. Bf1
{[%clk 0:03:40.4]} 18... Rxe1 {[%clk 0:03:00.1]} 19. Qxe1 {[%clk 0:03:40.3]}
19... Re8 {[%clk 0:02:54.8]} 20. Qc1 {[%clk 0:03:32]} 20... Bg4 {[%clk
0:02:50.8]} 21. Nh2 {[%clk 0:03:28]} 21... Bxh2+ {[%clk 0:02:36.6]} 22. Kxh2
{[%clk 0:03:26.5]} 22... Be2 {[%clk 0:02:31.1]} 23. Bxe2 {[%clk 0:03:21.3]}
23... Rxe2 {[%clk 0:02:29.3]} 24. Bf4 {[%clk 0:03:09.7]} 24... Ng4+ {[%clk
0:02:18.4]} 25. Kg1 {[%clk 0:02:58.5]} 25... Nxf2 {[%clk 0:02:08]} 26. Kh2
{[%clk 0:02:41.3]} 26... Nd3 {[%clk 0:01:47.3]} 27. Qf1 {[%clk 0:02:33.2]} 27...
Nxf4 {[%clk 0:01:44.3]} 0-1

[Event "Live Chess"]
[Site "Chess.com"]
[Date "2023.05.21"]
[Round "-"]
[White "wadsy27"]
[Black "OleksiyJr1"]
[Result "1-0"]
[WhiteElo "2545"]
[BlackElo "1040"]
[TimeControl "300"]
[EndTime "7:22:26 PDT"]
[Termination "wadsy27 won by resignation"]

1. c4 {[%clk 0:04:58.6]} 1... Nf6 {[%clk 0:04:55.5]} 2. g3 {[%clk 0:04:57.5]}
2... e5 {[%clk 0:04:45.8]} 3. Bg2 {[%clk 0:04:54.2]} 3... Nc6 {[%clk 0:04:45]}
4. Nc3 {[%clk 0:04:50.9]} 4... d6 {[%clk 0:04:43.9]} 5. Nf3 {[%clk 0:04:48.7]}
5... Bd7 {[%clk 0:04:40.7]} 6. O-O {[%clk 0:04:47.1]} 6... Be7 {[%clk
0:04:38.5]} 7. d4 {[%clk 0:04:46.3]} 7... exd4 {[%clk 0:04:36.5]} 8. Nxd4 {[%clk
0:04:45.4]} 8... Nxd4 {[%clk 0:04:35.3]} 9. Qxd4 {[%clk 0:04:43.9]} 9... O-O
{[%clk 0:04:32.9]} 10. Bxb7 {[%clk 0:04:41.7]} 10... Rb8 {[%clk 0:04:31.4]} 11.
Bg2 {[%clk 0:04:41.2]} 11... c5 {[%clk 0:04:30]} 12. Qd2 {[%clk 0:04:37.8]}
12... Be6 {[%clk 0:04:22.5]} 13. b3 {[%clk 0:04:35.6]} 13... Qd7 {[%clk
0:04:06.7]} 14. Bb2 {[%clk 0:04:34.2]} 14... Rbd8 {[%clk 0:04:02.9]} 15. Rad1
{[%clk 0:04:31.1]} 15... Rfe8 {[%clk 0:03:48.5]} 16. Nd5 {[%clk 0:04:29.7]}
16... Nxd5 {[%clk 0:03:46.9]} 17. Bxd5 {[%clk 0:04:29.6]} 17... Bxd5 {[%clk
0:03:46]} 18. Qxd5 {[%clk 0:04:29.3]} 18... Bf8 {[%clk 0:03:15.6]} 19. e3 {[%clk
0:04:27.1]} 19... Re5 {[%clk 0:03:13.4]} 20. Bxe5 {[%clk 0:04:25.5]} 20... dxe5
{[%clk 0:03:11.6]} 21. Qxd7 {[%clk 0:04:24.2]} 21... Rxd7 {[%clk 0:03:10.3]} 22.
Rxd7 {[%clk 0:04:23.9]} 22... Bd6 {[%clk 0:03:02.5]} 1-0

[Event "Live Chess"]
[Site "Chess.com"]
[Date "2023.05.21"]
[Round "-"]
[White "MarkLim1"]
[Black "WelshTiger"]
[Result "0-1"]
[WhiteElo "1705"]
[BlackElo "2334"]
[TimeControl "300"]
[EndTime "7:22:31 PDT"]
[Termination "WelshTiger won by resignation"]

1. e4 {[%clk 0:04:58.9]} 1... c5 {[%clk 0:04:58.4]} 2. Nf3 {[%clk 0:04:57.8]}
2... d6 {[%clk 0:04:57.7]} 3. Bb5+ {[%clk 0:04:56.6]} 3... Nd7 {[%clk
0:04:55.9]} 4. a4 {[%clk 0:04:54.7]} 4... a6 {[%clk 0:04:54.7]} 5. Be2 {[%clk
0:04:53.4]} 5... g6 {[%clk 0:04:50.8]} 6. O-O {[%clk 0:04:51.6]} 6... Bg7 {[%clk
0:04:50.2]} 7. Re1 {[%clk 0:04:50.7]} 7... e5 {[%clk 0:04:49.6]} 8. c3 {[%clk
0:04:49.2]} 8... Ne7 {[%clk 0:04:47.8]} 9. d3 {[%clk 0:04:45.9]} 9... O-O {[%clk
0:04:44.3]} 10. Bg5 {[%clk 0:04:44.9]} 10... f6 {[%clk 0:04:42.7]} 11. Be3
{[%clk 0:04:43.8]} 11... Qc7 {[%clk 0:04:36.5]} 12. Qd2 {[%clk 0:04:42.9]} 12...
d5 {[%clk 0:04:18.6]} 13. Bh6 {[%clk 0:04:38.8]} 13... d4 {[%clk 0:04:14.4]} 14.
Bxg7 {[%clk 0:04:37.3]} 14... Kxg7 {[%clk 0:04:13.5]} 15. Rc1 {[%clk 0:04:31.8]}
15... dxc3 {[%clk 0:03:57.4]} 16. Nxc3 {[%clk 0:04:29.1]} 16... Qd6 {[%clk
0:03:55.9]} 17. Ne1 {[%clk 0:04:17.3]} 17... Rd8 {[%clk 0:03:53.8]} 18. Nc2
{[%clk 0:04:16.4]} 18... Nf8 {[%clk 0:03:51.4]} 19. Ne3 {[%clk 0:04:15.3]} 19...
Be6 {[%clk 0:03:50.6]} 20. Rd1 {[%clk 0:04:05.7]} 20... Rac8 {[%clk 0:03:49.3]}
21. Bf3 {[%clk 0:04:02.4]} 21... Bb3 {[%clk 0:03:46.1]} 22. Rdc1 {[%clk
0:03:55.4]} 22... Qxd3 {[%clk 0:03:41.5]} 23. Qxd3 {[%clk 0:03:54.4]} 23... Rxd3
{[%clk 0:03:40]} 24. Ned5 {[%clk 0:03:50.9]} 24... Nxd5 {[%clk 0:03:39]} 25.
exd5 {[%clk 0:03:49.7]} 25... f5 {[%clk 0:03:32.5]} 26. Ra3 {[%clk 0:03:48.6]}
26... c4 {[%clk 0:03:31]} 27. Be2 {[%clk 0:03:43]} 27... Rd4 {[%clk 0:03:28.2]}
28. Bd1 {[%clk 0:03:34.1]} 28... Bxd1 {[%clk 0:03:24.2]} 29. Rxd1 {[%clk
0:03:32.7]} 29... Rxd1+ {[%clk 0:03:05.4]} 30. Nxd1 {[%clk 0:03:30.6]} 30... Nd7
{[%clk 0:03:05.1]} 31. Kf1 {[%clk 0:03:29.7]} 31... Kf6 {[%clk 0:03:02.4]} 32.
Ke2 {[%clk 0:03:27.8]} 32... e4 {[%clk 0:03:01.6]} 33. g3 {[%clk 0:03:25.6]}
33... Ke5 {[%clk 0:03:01]} 34. Ne3 {[%clk 0:03:24.5]} 34... Nf6 {[%clk
0:02:56.1]} 35. Rc3 {[%clk 0:03:19.6]} 35... b5 {[%clk 0:02:54.4]} 36. axb5
{[%clk 0:03:18.2]} 36... axb5 {[%clk 0:02:54.3]} 37. b3 {[%clk 0:03:10.3]} 37...
Nxd5 {[%clk 0:02:51.1]} 38. Nxd5 {[%clk 0:03:08.8]} 38... Kxd5 {[%clk
0:02:50.2]} 39. bxc4+ {[%clk 0:03:07.7]} 39... Rxc4 {[%clk 0:02:44]} 40. Ra3
{[%clk 0:03:06.3]} 40... Kd4 {[%clk 0:02:39.3]} 41. Ra8 {[%clk 0:03:02.3]} 41...
Rc2+ {[%clk 0:02:38.2]} 42. Ke1 {[%clk 0:03:01.1]} 42... b4 {[%clk 0:02:36.6]}
43. Rd8+ {[%clk 0:02:59.6]} 43... Kc3 {[%clk 0:02:34.5]} 44. Kd1 {[%clk
0:02:53.9]} 44... Rxf2 {[%clk 0:02:33]} 45. Rc8+ {[%clk 0:02:52.6]} 45... Kb2
{[%clk 0:02:28.3]} 46. Rb8 {[%clk 0:02:51.4]} 46... b3 {[%clk 0:02:27.7]} 0-1

[Event "Live Chess"]
[Site "Chess.com"]
[Date "2023.05.21"]
[Round "-"]
[White "Ra2orLeaf"]
[Black "CocheseUK"]
[Result "1-0"]
[WhiteElo "1144"]
[BlackElo "1039"]
[TimeControl "300"]
[EndTime "7:22:33 PDT"]
[Termination "Ra2orLeaf won by resignation"]

1. d4 {[%clk 0:04:54.4]} 1... d5 {[%clk 0:04:57]} 2. Nf3 {[%clk 0:04:53.2]} 2...
Nc6 {[%clk 0:04:52.9]} 3. e3 {[%clk 0:04:52.6]} 3... e6 {[%clk 0:04:51.1]} 4.
Bd3 {[%clk 0:04:51.7]} 4... Nf6 {[%clk 0:04:48.1]} 5. Nbd2 {[%clk 0:04:45]} 5...
Bd6 {[%clk 0:04:46]} 6. c4 {[%clk 0:04:43.4]} 6... dxc4 {[%clk 0:04:41.4]} 7.
Nxc4 {[%clk 0:04:43.3]} 7... Bb4+ {[%clk 0:04:39.1]} 8. Bd2 {[%clk 0:04:42.2]}
8... Bxd2+ {[%clk 0:04:37.5]} 9. Qxd2 {[%clk 0:04:42.1]} 9... O-O {[%clk
0:04:34.3]} 10. O-O {[%clk 0:04:41.1]} 10... Bd7 {[%clk 0:04:24.6]} 11. Nce5
{[%clk 0:04:38.8]} 11... Nxe5 {[%clk 0:04:20.7]} 12. dxe5 {[%clk 0:04:38.7]}
12... Nd5 {[%clk 0:04:15.7]} 13. Ng5 {[%clk 0:04:29.6]} 13... h6 {[%clk
0:04:05.7]} 14. Nh3 {[%clk 0:04:27.6]} 14... f6 {[%clk 0:03:52.2]} 15. exf6
{[%clk 0:04:25.6]} 15... Nxf6 {[%clk 0:03:48.1]} 16. Rac1 {[%clk 0:04:16.8]}
16... Bc6 {[%clk 0:03:46.1]} 17. Rfd1 {[%clk 0:04:06.7]} 17... Qd5 {[%clk
0:03:38.4]} 18. Nf4 {[%clk 0:03:52.1]} 18... Qxa2 {[%clk 0:03:23.6]} 19. Nxe6
{[%clk 0:03:41.2]} 19... Rfe8 {[%clk 0:03:10]} 20. Nxc7 {[%clk 0:03:37.8]} 20...
Rf8 {[%clk 0:02:55.6]} 21. Nxa8 {[%clk 0:03:34.3]} 21... Rxa8 {[%clk 0:02:54.4]}
22. Bc4+ {[%clk 0:03:33.5]} 22... Qxc4 {[%clk 0:02:49.4]} 23. Rxc4 {[%clk
0:03:32.2]} 23... Ne4 {[%clk 0:02:40.9]} 24. Qb4 {[%clk 0:03:15.1]} 24... Rf8
{[%clk 0:02:33]} 25. Rxe4 {[%clk 0:03:12]} 25... Bxe4 {[%clk 0:02:30.3]} 26.
Qxe4 {[%clk 0:03:11.9]} 1-0

[Event "Live Chess"]
[Site "Chess.com"]
[Date "2023.05.21"]
[Round "-"]
[White "WilliamofOrange16th"]
[Black "LaupMiths"]
[Result "0-1"]
[WhiteElo "1858"]
[BlackElo "1818"]
[TimeControl "300"]
[EndTime "7:22:41 PDT"]
[Termination "LaupMiths won by resignation"]

1. e4 {[%clk 0:04:57.8]} 1... c5 {[%clk 0:04:57.8]} 2. b4 {[%clk 0:04:56]} 2...
cxb4 {[%clk 0:04:56.4]} 3. a3 {[%clk 0:04:54.7]} 3... e6 {[%clk 0:04:55.8]} 4.
axb4 {[%clk 0:04:53]} 4... Bxb4 {[%clk 0:04:54.2]} 5. c3 {[%clk 0:04:52.4]} 5...
Be7 {[%clk 0:04:52.5]} 6. d4 {[%clk 0:04:51.5]} 6... d5 {[%clk 0:04:50.4]} 7.
Bd3 {[%clk 0:04:50.2]} 7... dxe4 {[%clk 0:04:47]} 8. Bxe4 {[%clk 0:04:49.2]}
8... Nf6 {[%clk 0:04:46.4]} 9. Bd3 {[%clk 0:04:48]} 9... O-O {[%clk 0:04:44.8]}
10. Nf3 {[%clk 0:04:46.9]} 10... Bd7 {[%clk 0:04:42]} 11. O-O {[%clk 0:04:45.8]}
11... Bc6 {[%clk 0:04:40.9]} 12. Ne5 {[%clk 0:04:40.2]} 12... Qd5 {[%clk
0:04:39.7]} 13. Nxc6 {[%clk 0:04:39]} 13... Nxc6 {[%clk 0:04:38.2]} 14. Be3
{[%clk 0:04:35]} 14... a6 {[%clk 0:04:29.9]} 15. Nd2 {[%clk 0:04:33.9]} 15... b5
{[%clk 0:04:28.1]} 16. c4 {[%clk 0:04:24.2]} 16... bxc4 {[%clk 0:04:21.8]} 17.
Bxc4 {[%clk 0:04:24.1]} 17... Qd7 {[%clk 0:04:12.5]} 18. Rxa6 {[%clk 0:04:21.6]}
18... Nxd4 {[%clk 0:04:08.1]} 19. Rxa8 {[%clk 0:04:18.6]} 19... Rxa8 {[%clk
0:04:06.1]} 20. Nf3 {[%clk 0:04:09.4]} 20... Nxf3+ {[%clk 0:04:02.7]} 21. Qxf3
{[%clk 0:04:09.3]} 21... Rc8 {[%clk 0:04:00.7]} 22. Rd1 {[%clk 0:04:04.3]} 22...
Qc6 {[%clk 0:03:46.5]} 23. Qxc6 {[%clk 0:03:56]} 23... Rxc6 {[%clk 0:03:45.5]}
24. Bb5 {[%clk 0:03:55.2]} 24... Rd6 {[%clk 0:03:40.6]} 25. Ra1 {[%clk
0:03:53.8]} 25... h6 {[%clk 0:03:37.5]} 26. Kf1 {[%clk 0:03:48]} 26... Nd5
{[%clk 0:03:32]} 27. Bc5 {[%clk 0:03:43.5]} 27... Rd8 {[%clk 0:03:25.8]} 28.
Bxe7 {[%clk 0:03:38.6]} 28... Nxe7 {[%clk 0:03:25.7]} 29. Ra7 {[%clk 0:03:35.8]}
29... Nf5 {[%clk 0:03:20.2]} 30. Ba4 {[%clk 0:03:15.6]} 30... g6 {[%clk
0:03:17.6]} 31. g3 {[%clk 0:03:14.8]} 31... Kg7 {[%clk 0:03:15.8]} 32. Bb3
{[%clk 0:03:06.7]} 32... Kf6 {[%clk 0:03:12.9]} 33. f4 {[%clk 0:03:04.7]} 33...
h5 {[%clk 0:03:10.4]} 34. Ra2 {[%clk 0:02:56.9]} 34... Rd3 {[%clk 0:03:06.2]}
35. Bc4 {[%clk 0:02:54.3]} 35... Rd1+ {[%clk 0:02:44.5]} 36. Kf2 {[%clk
0:02:49.3]} 36... Rh1 {[%clk 0:02:41.3]} 37. Kg2 {[%clk 0:02:47.4]} 37... Rd1
{[%clk 0:02:35]} 38. Be2 {[%clk 0:02:41.4]} 38... Rc1 {[%clk 0:02:29.5]} 39. h3
{[%clk 0:02:29.3]} 39... Nd4 {[%clk 0:02:21.2]} 40. Bd3 {[%clk 0:02:26]} 40...
Rc3 {[%clk 0:02:18.1]} 41. Be4 {[%clk 0:02:22.2]} 41... Re3 {[%clk 0:02:14.3]}
42. Bb7 {[%clk 0:02:20.2]} 42... Re2+ {[%clk 0:02:12.5]} 43. Rxe2 {[%clk
0:02:18.6]} 43... Nxe2 {[%clk 0:02:12.4]} 44. Kf3 {[%clk 0:02:16.3]} 44... Nd4+
{[%clk 0:02:09.8]} 45. Ke4 {[%clk 0:02:15.4]} 45... Nf5 {[%clk 0:02:08.1]} 46.
g4 {[%clk 0:02:13.9]} 46... hxg4 {[%clk 0:02:07.9]} 47. hxg4 {[%clk 0:02:13.4]}
47... Nd6+ {[%clk 0:02:05.2]} 0-1